[Event "Titled Tuesday Blitz May 9 Late 2023"]
[White "Sanhueza, Cristian"]
[Black "Riehle, Marco"]
[WhiteFideId "116815"]
[BlackFideId "12904392"]
[WhiteElo "2174"]
[BlackElo "2462"]
[Result "0-1"]
[Round "02"]
[TimeControl "180+2"]
[Date "2023.05.09"]
[WhiteClock "0:00:07"]
[BlackClock "0:00:43"]

1. e4 {[%clk 0:03:00]}  e5 {[%clk 0:02:59]} 2. Nf3 {[%clk 0:02:59]}  Nf6 {[%clk 0:02:59]} 3. d4 {[%clk 0:02:59]}  Nxe4 {[%clk 0:02:59]} 4. Bd3 {[%clk 0:02:58]}  Nc6 {[%clk 0:02:59]} 5. Nxe5 {[%clk 0:02:53]}  Nxe5 {[%clk 0:02:58]} 6. dxe5 {[%clk 0:02:54]}  Nc5 {[%clk 0:02:59]} 7. O-O {[%clk 0:02:51]}  d6 {[%clk 0:02:58]} 8. exd6 {[%clk 0:02:50]}  Bxd6 {[%clk 0:02:59]} 9. Re1+ {[%clk 0:02:50]}  Be6 {[%clk 0:02:59]} 10. Nc3 {[%clk 0:02:37]}  Nxd3 {[%clk 0:02:57]} 11. Qxd3 {[%clk 0:02:37]}  O-O {[%clk 0:02:56]} 12. Ne4 {[%clk 0:02:30]}  Be7 {[%clk 0:02:51]} 13. Qg3 {[%clk 0:02:23]}  Bf5 {[%clk 0:02:44]} 14. Bf4 {[%clk 0:02:10]}  c6 {[%clk 0:02:40]} 15. Rad1 {[%clk 0:02:06]}  Qa5 {[%clk 0:02:35]} 16. Nd6 {[%clk 0:01:53]}  Bxd6 {[%clk 0:02:30]} 17. Bxd6 {[%clk 0:01:54]}  Rfe8 {[%clk 0:02:23]} 18. Be5 {[%clk 0:01:29]}  Bg6 {[%clk 0:02:22]} 19. h4 {[%clk 0:01:26]}  h5 {[%clk 0:02:15]} 20. Qc3 {[%clk 0:01:13]}  Qxc3 {[%clk 0:02:12]} 21. Bxc3 {[%clk 0:01:14]}  Rxe1+ {[%clk 0:02:05]} 22. Rxe1 {[%clk 0:01:15]}  Bxc2 {[%clk 0:02:03]} 23. Re7 {[%clk 0:01:15]}  b5 {[%clk 0:02:03]} 24. f3 {[%clk 0:01:11]}  Bb1 {[%clk 0:01:56]} 25. a3 {[%clk 0:00:54]}  Ba2 {[%clk 0:01:55]} 26. Kf2 {[%clk 0:00:51]}  a5 {[%clk 0:01:52]} 27. b4 {[%clk 0:00:43]}  axb4 {[%clk 0:01:49]} 28. axb4 {[%clk 0:00:44]}  Bd5 {[%clk 0:01:48]} 29. Bd4 {[%clk 0:00:42]}  Kh7 {[%clk 0:01:40]} 30. Kg3 {[%clk 0:00:34]}  Ra4 {[%clk 0:01:36]} 31. Bc5 {[%clk 0:00:34]}  Ra2 {[%clk 0:01:37]} 32. Re1 {[%clk 0:00:30]}  Rb2 {[%clk 0:01:34]} 33. Rf1 {[%clk 0:00:29]}  Bc4 {[%clk 0:01:27]} 34. Rf2 {[%clk 0:00:29]}  Rb1 {[%clk 0:01:27]} 35. Rd2 {[%clk 0:00:29]}  Kg6 {[%clk 0:01:25]} 36. Rd6+ {[%clk 0:00:28]}  f6 {[%clk 0:01:25]} 37. Rxc6 {[%clk 0:00:27]}  Rb2 {[%clk 0:01:25]} 38. Rc7 {[%clk 0:00:13]}  Bf1 {[%clk 0:01:24]} 39. Bf8 {[%clk 0:00:09]}  Rxg2+ {[%clk 0:01:22]} 40. Kf4 {[%clk 0:00:10]}  Kh7 {[%clk 0:01:21]} 41. Rc5 {[%clk 0:00:10]}  Kh6 {[%clk 0:01:17]} 42. Rc6 {[%clk 0:00:10]}  Kg6 {[%clk 0:01:03]} 43. Rc7 {[%clk 0:00:10]}  Kh6 {[%clk 0:00:59]} 44. Rc6 {[%clk 0:00:11]}  Rg6 {[%clk 0:00:59]} 45. Rc5 {[%clk 0:00:11]}  Be2 {[%clk 0:00:54]} 46. Rc7 {[%clk 0:00:11]}  Kh7 {[%clk 0:00:52]} 47. Rd7 {[%clk 0:00:11]}  Rg1 {[%clk 0:00:51]} 48. Rc7 {[%clk 0:00:10]}  Rf1 {[%clk 0:00:49]} 49. Rc3 {[%clk 0:00:10]}  Kh6 {[%clk 0:00:47]} 50. Re3 {[%clk 0:00:09]}  Bd1 {[%clk 0:00:46]} 51. Re6 {[%clk 0:00:09]}  Rxf3+ {[%clk 0:00:45]} 52. Ke4 {[%clk 0:00:10]}  Rf1 {[%clk 0:00:44]} 53. Ke3 {[%clk 0:00:07]}  Re1+ {[%clk 0:00:43]} 0-1


[Site "https://www.chess.com"]

[Event "Titled Tuesday Blitz May 9 Late 2023"]
[White "Garcia Cuenca, Victor"]
[Black "Kobo, Ori"]
[WhiteFideId "2250829"]
[BlackFideId "2812320"]
[WhiteElo "2329"]
[BlackElo "2454"]
[Result "0-1"]
[Round "02"]
[TimeControl "180+2"]
[Date "2023.05.09"]
[WhiteClock "0:00:02"]
[BlackClock "0:00:33"]

1. d4 {[%clk 0:03:00]}  Nf6 {[%clk 0:03:00]} 2. Nf3 {[%clk 0:02:59]}  g6 {[%clk 0:02:59]} 3. g3 {[%clk 0:02:58]}  Bg7 {[%clk 0:03:00]} 4. Bg2 {[%clk 0:02:59]}  d6 {[%clk 0:03:00]} 5. O-O {[%clk 0:03:00]}  O-O {[%clk 0:03:00]} 6. c4 {[%clk 0:03:00]}  Bf5 {[%clk 0:03:00]} 7. Nc3 {[%clk 0:02:57]}  Ne4 {[%clk 0:03:00]} 8. Nd5 {[%clk 0:02:58]}  c6 {[%clk 0:02:58]} 9. Ne3 {[%clk 0:02:55]}  Be6 {[%clk 0:02:58]} 10. b3 {[%clk 0:02:53]}  f5 {[%clk 0:02:57]} 11. Bb2 {[%clk 0:02:51]}  a5 {[%clk 0:02:57]} 12. Qc2 {[%clk 0:02:44]}  Bf7 {[%clk 0:02:52]} 13. Rad1 {[%clk 0:02:40]}  a4 {[%clk 0:02:50]} 14. b4 {[%clk 0:02:22]}  a3 {[%clk 0:02:49]} 15. Ba1 {[%clk 0:02:22]}  d5 {[%clk 0:02:43]} 16. Ne5 {[%clk 0:02:18]}  Be6 {[%clk 0:02:37]} 17. b5 {[%clk 0:02:04]}  Kh8 {[%clk 0:02:03]} 18. bxc6 {[%clk 0:01:53]}  bxc6 {[%clk 0:02:04]} 19. f3 {[%clk 0:01:51]}  Nf6 {[%clk 0:01:55]} 20. Rb1 {[%clk 0:01:46]}  Nfd7 {[%clk 0:01:52]} 21. Rfd1 {[%clk 0:01:38]}  f4 {[%clk 0:01:43]} 22. gxf4 {[%clk 0:01:21]}  Rxf4 {[%clk 0:01:44]} 23. cxd5 {[%clk 0:01:00]}  cxd5 {[%clk 0:01:43]} 24. Nc6 {[%clk 0:00:53]}  Nxc6 {[%clk 0:01:36]} 25. Qxc6 {[%clk 0:00:54]}  Nf8 {[%clk 0:01:37]} 26. Nf1 {[%clk 0:00:45]}  Rc8 {[%clk 0:01:33]} 27. Qa4 {[%clk 0:00:42]}  Qd6 {[%clk 0:01:28]} 28. e3 {[%clk 0:00:41]}  Rf7 {[%clk 0:01:24]} 29. e4 {[%clk 0:00:38]}  Rc4 {[%clk 0:01:19]} 30. Qe8 {[%clk 0:00:25]}  Rc8 {[%clk 0:01:17]} 31. Qa4 {[%clk 0:00:24]}  Qf4 {[%clk 0:00:55]} 32. Ng3 {[%clk 0:00:22]}  Qe3+ {[%clk 0:00:51]} 33. Kh1 {[%clk 0:00:21]}  Rc4 {[%clk 0:00:52]} 34. Qe8 {[%clk 0:00:20]}  Rc8 {[%clk 0:00:52]} 35. Qa4 {[%clk 0:00:20]}  h5 {[%clk 0:00:49]} 36. Rb3 {[%clk 0:00:18]}  Qf4 {[%clk 0:00:49]} 37. Rxa3 {[%clk 0:00:17]}  h4 {[%clk 0:00:47]} 38. Ne2 {[%clk 0:00:16]}  Qh6 {[%clk 0:00:47]} 39. Ng1 {[%clk 0:00:17]}  Rc4 {[%clk 0:00:44]} 40. Qe8 {[%clk 0:00:16]}  Rc8 {[%clk 0:00:44]} 41. Qa4 {[%clk 0:00:15]}  Rc1 {[%clk 0:00:44]} 42. Rad3 {[%clk 0:00:14]}  h3 {[%clk 0:00:41]} 43. Bf1 {[%clk 0:00:12]}  dxe4 {[%clk 0:00:37]} 44. Bb2 {[%clk 0:00:07]}  Rc4 {[%clk 0:00:34]} 45. Qb3 {[%clk 0:00:03]}  exd3 {[%clk 0:00:34]} 46. d5 {[%clk 0:00:02]}  Bxd5 {[%clk 0:00:33]} 0-1


[Site "https://www.chess.com"]

[Event "Titled Tuesday Blitz May 9 Late 2023"]
[White "Peng, Li Min"]
[Black "ArtemDyachuk"]
[WhiteFideId "14112620"]
[WhiteElo "2436"]
[BlackElo "2535"]
[Result "1-0"]
[Round "02"]
[TimeControl "180+2"]
[Date "2023.05.09"]
[WhiteClock "0:02:18"]
[BlackClock "0:00:08"]

1. e4 {[%clk 0:03:00]}  c6 {[%clk 0:02:57]} 2. d4 {[%clk 0:03:00]}  d5 {[%clk 0:02:57]} 3. Nc3 {[%clk 0:03:01]}  dxe4 {[%clk 0:02:56]} 4. Nxe4 {[%clk 0:03:02]}  Nf6 {[%clk 0:02:55]} 5. Nxf6+ {[%clk 0:03:02]}  exf6 {[%clk 0:02:55]} 6. c3 {[%clk 0:03:02]}  Bd6 {[%clk 0:02:56]} 7. Bd3 {[%clk 0:03:02]}  Na6 {[%clk 0:02:56]} 8. Qc2 {[%clk 0:03:03]}  Nc7 {[%clk 0:02:56]} 9. Ne2 {[%clk 0:03:00]}  Nd5 {[%clk 0:02:55]} 10. O-O {[%clk 0:02:58]}  Be6 {[%clk 0:02:49]} 11. a3 {[%clk 0:02:56]}  h5 {[%clk 0:02:28]} 12. f4 {[%clk 0:02:51]}  b5 {[%clk 0:02:12]} 13. f5 {[%clk 0:02:42]}  Bd7 {[%clk 0:02:11]} 14. b3 {[%clk 0:02:43]}  Qc7 {[%clk 0:02:01]} 15. h3 {[%clk 0:02:43]}  c5 {[%clk 0:01:20]} 16. c4 {[%clk 0:02:32]}  bxc4 {[%clk 0:01:10]} 17. bxc4 {[%clk 0:02:33]}  Ne7 {[%clk 0:01:09]} 18. d5 {[%clk 0:02:33]}  h4 {[%clk 0:01:06]} 19. Rb1 {[%clk 0:02:31]}  Rh5 {[%clk 0:00:58]} 20. Nc3 {[%clk 0:02:26]}  Be5 {[%clk 0:00:38]} 21. Nb5 {[%clk 0:02:21]}  Bxb5 {[%clk 0:00:23]} 22. Rxb5 {[%clk 0:02:22]}  Nc8 {[%clk 0:00:23]} 23. Be3 {[%clk 0:02:18]}  Bd4 {[%clk 0:00:16]} 24. Bxd4 {[%clk 0:02:18]}  cxd4 {[%clk 0:00:17]} 25. Qe2+ {[%clk 0:02:18]}  Kf8 {[%clk 0:00:08]} 26. Qxh5 {[%clk 0:02:18]} 1-0


[Site "https://www.chess.com"]

[Event "Titled Tuesday Blitz May 9 Late 2023"]
[White "Sreyas Payyappat"]
[Black "Pakleza, Zbigniew"]
[WhiteFideId "46674969"]
[BlackFideId "1119290"]
[WhiteElo "2043"]
[BlackElo "2410"]
[Result "0-1"]
[Round "02"]
[TimeControl "180+2"]
[Date "2023.05.09"]
[WhiteClock "0:00:00"]
[BlackClock "0:00:54"]

1. e4 {[%clk 0:03:00]}  d6 {[%clk 0:02:58]} 2. d4 {[%clk 0:03:00]}  Nf6 {[%clk 0:02:59]} 3. Nc3 {[%clk 0:03:01]}  c6 {[%clk 0:03:00]} 4. f4 {[%clk 0:02:57]}  Qb6 {[%clk 0:02:59]} 5. Nf3 {[%clk 0:02:55]}  Bg4 {[%clk 0:02:57]} 6. Be2 {[%clk 0:02:54]}  Bxf3 {[%clk 0:02:57]} 7. Bxf3 {[%clk 0:02:53]}  e5 {[%clk 0:02:56]} 8. fxe5 {[%clk 0:02:44]}  dxe5 {[%clk 0:02:57]} 9. dxe5 {[%clk 0:02:41]}  Nfd7 {[%clk 0:02:57]} 10. e6 {[%clk 0:02:17]}  fxe6 {[%clk 0:02:58]} 11. Bg4 {[%clk 0:02:06]}  Na6 {[%clk 0:02:55]} 12. Bxe6 {[%clk 0:01:08]}  O-O-O {[%clk 0:02:55]} 13. Qd3 {[%clk 0:00:35]}  Nc5 {[%clk 0:02:41]} 14. Bxd7+ {[%clk 0:00:32]}  Rxd7 {[%clk 0:02:42]} 15. Qh3 {[%clk 0:00:32]}  Be7 {[%clk 0:02:27]} 16. O-O {[%clk 0:00:26]}  Rd8 {[%clk 0:01:42]} 17. Kh1 {[%clk 0:00:18]}  Kb8 {[%clk 0:01:39]} 18. Bf4+ {[%clk 0:00:18]}  Ka8 {[%clk 0:01:40]} 19. Rad1 {[%clk 0:00:18]}  Qxb2 {[%clk 0:01:27]} 20. Rxd7 {[%clk 0:00:15]}  Rxd7 {[%clk 0:01:28]} 21. Bg5 {[%clk 0:00:08]}  Bxg5 {[%clk 0:01:06]} 22. Rf8+ {[%clk 0:00:06]}  Bd8 {[%clk 0:01:05]} 23. Qf3 {[%clk 0:00:01]}  Qa1+ {[%clk 0:00:54]} 24. Qf1 {[%clk 0:00:00]}  Qxc3 {[%clk 0:00:54]} 0-1


[Site "https://www.chess.com"]

[Event "Titled Tuesday Blitz May 9 Late 2023"]
[White "Remizov, Yaroslav"]
[Black "Ozdemir, Serhan Berat"]
[WhiteFideId "34134015"]
[BlackFideId "6374611"]
[WhiteElo "2400"]
[BlackElo "2015"]
[Result "0-1"]
[Round "02"]
[TimeControl "180+2"]
[Date "2023.05.09"]
[WhiteClock "0:00:11"]
[BlackClock "0:00:05"]

1. e4 {[%clk 0:02:58]}  c5 {[%clk 0:02:59]} 2. Nf3 {[%clk 0:02:58]}  e6 {[%clk 0:02:59]} 3. c3 {[%clk 0:02:29]}  Nf6 {[%clk 0:02:49]} 4. e5 {[%clk 0:02:29]}  Nd5 {[%clk 0:02:50]} 5. d4 {[%clk 0:02:29]}  cxd4 {[%clk 0:02:49]} 6. cxd4 {[%clk 0:02:30]}  d6 {[%clk 0:02:49]} 7. Bc4 {[%clk 0:02:31]}  Nc6 {[%clk 0:02:46]} 8. O-O {[%clk 0:02:31]}  Be7 {[%clk 0:02:10]} 9. Qe2 {[%clk 0:02:30]}  O-O {[%clk 0:02:09]} 10. Nc3 {[%clk 0:02:29]}  Nxc3 {[%clk 0:02:02]} 11. bxc3 {[%clk 0:02:30]}  dxe5 {[%clk 0:02:02]} 12. dxe5 {[%clk 0:02:30]}  Qc7 {[%clk 0:01:55]} 13. Bd3 {[%clk 0:02:25]}  b6 {[%clk 0:01:54]} 14. Re1 {[%clk 0:02:18]}  Bb7 {[%clk 0:01:53]} 15. Ng5 {[%clk 0:02:14]}  Bxg5 {[%clk 0:01:50]} 16. Bxg5 {[%clk 0:02:15]}  Ne7 {[%clk 0:01:46]} 17. Qh5 {[%clk 0:02:03]}  Ng6 {[%clk 0:01:43]} 18. Re3 {[%clk 0:02:03]}  Qxc3 {[%clk 0:01:39]} 19. Rd1 {[%clk 0:01:46]}  Qc6 {[%clk 0:01:22]} 20. Be4 {[%clk 0:01:40]}  Qxe4 {[%clk 0:01:22]} 21. Rxe4 {[%clk 0:01:40]}  Bxe4 {[%clk 0:01:23]} 22. f3 {[%clk 0:01:37]}  Bd5 {[%clk 0:01:19]} 23. a3 {[%clk 0:01:27]}  Rac8 {[%clk 0:01:19]} 24. h4 {[%clk 0:01:25]}  Rc4 {[%clk 0:01:17]} 25. Kh2 {[%clk 0:01:16]}  h6 {[%clk 0:01:12]} 26. Rc1 {[%clk 0:01:06]}  hxg5 {[%clk 0:01:09]} 27. Rxc4 {[%clk 0:01:06]}  Bxc4 {[%clk 0:01:10]} 28. Qxg5 {[%clk 0:01:07]}  Bd5 {[%clk 0:00:50]} 29. h5 {[%clk 0:01:07]}  Nh8 {[%clk 0:00:50]} 30. Qe7 {[%clk 0:01:07]}  Ra8 {[%clk 0:00:47]} 31. Kg3 {[%clk 0:01:05]}  a5 {[%clk 0:00:47]} 32. Qd7 {[%clk 0:01:02]}  g6 {[%clk 0:00:43]} 33. h6 {[%clk 0:00:57]}  Kh7 {[%clk 0:00:44]} 34. f4 {[%clk 0:00:51]}  Kxh6 {[%clk 0:00:43]} 35. Qb5 {[%clk 0:00:50]}  Rg8 {[%clk 0:00:37]} 36. Qxb6 {[%clk 0:00:46]}  g5 {[%clk 0:00:37]} 37. f5 {[%clk 0:00:46]}  a4 {[%clk 0:00:25]} 38. Qa5 {[%clk 0:00:43]}  Rb8 {[%clk 0:00:21]} 39. Qxa4 {[%clk 0:00:42]}  Rb2 {[%clk 0:00:21]} 40. Qe8 {[%clk 0:00:36]}  Rxg2+ {[%clk 0:00:19]} 41. Kh3 {[%clk 0:00:37]}  Kh7 {[%clk 0:00:14]} 42. fxe6 {[%clk 0:00:37]}  Ng6 {[%clk 0:00:06]} 43. Qxf7+ {[%clk 0:00:31]}  Kh6 {[%clk 0:00:07]} 44. e7 {[%clk 0:00:29]}  Bxf7 {[%clk 0:00:07]} 45. Kxg2 {[%clk 0:00:29]}  Be8 {[%clk 0:00:07]} 46. Kf3 {[%clk 0:00:22]}  Nxe5+ {[%clk 0:00:07]} 47. Ke4 {[%clk 0:00:22]}  g4 {[%clk 0:00:07]} 48. Kf4 {[%clk 0:00:21]}  Kh5 {[%clk 0:00:07]} 49. a4 {[%clk 0:00:20]}  Bxa4 {[%clk 0:00:06]} 50. Kxe5 {[%clk 0:00:20]}  g3 {[%clk 0:00:06]} 51. Kd6 {[%clk 0:00:18]}  g2 {[%clk 0:00:07]} 52. Kc7 {[%clk 0:00:17]}  g1=Q {[%clk 0:00:07]} 53. Kb7 {[%clk 0:00:17]}  Qb1+ {[%clk 0:00:04]} 54. Ka8 {[%clk 0:00:17]}  Qe4+ {[%clk 0:00:05]} 55. Kb8 {[%clk 0:00:11]}  Qxe7 {[%clk 0:00:05]} 0-1


[Site "https://www.chess.com"]

[Event "Titled Tuesday Blitz May 9 Late 2023"]
[White "FoxOnTheRun97"]
[Black "Hambleton, Aman"]
[BlackFideId "2606577"]
[WhiteElo "2529"]
[BlackElo "2511"]
[Result "0-1"]
[Round "02"]
[TimeControl "180+2"]
[Date "2023.05.09"]
[WhiteClock "0:00:06"]
[BlackClock "0:00:13"]

1. d4 {[%clk 0:03:00]}  e5 {[%clk 0:02:59]} 2. dxe5 {[%clk 0:03:00]}  Nc6 {[%clk 0:02:57]} 3. Nf3 {[%clk 0:02:56]}  Qe7 {[%clk 0:02:57]} 4. Qd5 {[%clk 0:02:50]}  f6 {[%clk 0:02:57]} 5. Nc3 {[%clk 0:02:20]}  fxe5 {[%clk 0:02:53]} 6. Nb5 {[%clk 0:02:12]}  d6 {[%clk 0:02:47]} 7. e4 {[%clk 0:01:59]}  a6 {[%clk 0:02:43]} 8. Bg5 {[%clk 0:01:46]}  Nf6 {[%clk 0:02:38]} 9. Bxf6 {[%clk 0:01:42]}  gxf6 {[%clk 0:02:39]} 10. Nc3 {[%clk 0:01:41]}  Be6 {[%clk 0:02:38]} 11. Qd2 {[%clk 0:01:39]}  h5 {[%clk 0:02:31]} 12. Nd5 {[%clk 0:01:39]}  Qf7 {[%clk 0:02:31]} 13. Bc4 {[%clk 0:01:34]}  Bh6 {[%clk 0:01:38]} 14. Qc3 {[%clk 0:01:33]}  O-O-O {[%clk 0:01:38]} 15. b4 {[%clk 0:01:17]}  f5 {[%clk 0:01:26]} 16. b5 {[%clk 0:00:44]}  axb5 {[%clk 0:01:15]} 17. Bxb5 {[%clk 0:00:43]}  fxe4 {[%clk 0:01:14]} 18. Bxc6 {[%clk 0:00:21]}  Bxd5 {[%clk 0:00:45]} 19. Bxd5 {[%clk 0:00:14]}  Qxd5 {[%clk 0:00:45]} 20. Nd2 {[%clk 0:00:08]}  Rhg8 {[%clk 0:00:45]} 21. g3 {[%clk 0:00:08]}  Bxd2+ {[%clk 0:00:42]} 22. Qxd2 {[%clk 0:00:07]}  Qxd2+ {[%clk 0:00:43]} 23. Kxd2 {[%clk 0:00:08]}  Rdf8 {[%clk 0:00:44]} 24. Rhf1 {[%clk 0:00:08]}  Rf3 {[%clk 0:00:44]} 25. Rae1 {[%clk 0:00:07]}  d5 {[%clk 0:00:44]} 26. Re3 {[%clk 0:00:06]}  Rgf8 {[%clk 0:00:42]} 27. Rxf3 {[%clk 0:00:06]}  Rxf3 {[%clk 0:00:43]} 28. Ke2 {[%clk 0:00:06]}  Rc3 {[%clk 0:00:28]} 29. Kd2 {[%clk 0:00:06]}  Ra3 {[%clk 0:00:23]} 30. h3 {[%clk 0:00:05]}  Kd7 {[%clk 0:00:16]} 31. g4 {[%clk 0:00:05]}  h4 {[%clk 0:00:17]} 32. Rb1 {[%clk 0:00:04]}  b6 {[%clk 0:00:15]} 33. Rb3 {[%clk 0:00:03]}  Rxa2 {[%clk 0:00:10]} 34. Re3 {[%clk 0:00:02]}  Ke6 {[%clk 0:00:05]} 35. f3 {[%clk 0:00:02]}  exf3 {[%clk 0:00:04]} 36. Rxf3 {[%clk 0:00:03]}  Ra1 {[%clk 0:00:04]} 37. Rf8 {[%clk 0:00:04]}  Rh1 {[%clk 0:00:04]} 38. Re8+ {[%clk 0:00:04]}  Kd6 {[%clk 0:00:05]} 39. Rd8+ {[%clk 0:00:05]}  Kc6 {[%clk 0:00:04]} 40. Re8 {[%clk 0:00:05]}  Kd6 {[%clk 0:00:05]} 41. Rd8+ {[%clk 0:00:04]}  Kc5 {[%clk 0:00:05]} 42. Re8 {[%clk 0:00:04]}  Kd4 {[%clk 0:00:06]} 43. g5 {[%clk 0:00:03]}  Rxh3 {[%clk 0:00:06]} 44. g6 {[%clk 0:00:03]}  Rh2+ {[%clk 0:00:06]} 45. Kc1 {[%clk 0:00:03]}  Rg2 {[%clk 0:00:07]} 46. Rh8 {[%clk 0:00:02]}  Rxg6 {[%clk 0:00:07]} 47. Rxh4+ {[%clk 0:00:03]}  e4 {[%clk 0:00:07]} 48. Kb2 {[%clk 0:00:03]}  Rg2 {[%clk 0:00:06]} 49. Rh3 {[%clk 0:00:03]}  c5 {[%clk 0:00:05]} 50. Kc1 {[%clk 0:00:03]}  b5 {[%clk 0:00:05]} 51. Kd1 {[%clk 0:00:03]}  b4 {[%clk 0:00:05]} 52. Kc1 {[%clk 0:00:04]}  Kc4 {[%clk 0:00:06]} 53. Kb2 {[%clk 0:00:04]}  d4 {[%clk 0:00:06]} 54. Rh1 {[%clk 0:00:04]}  b3 {[%clk 0:00:06]} 55. Ka3 {[%clk 0:00:03]}  Rxc2 {[%clk 0:00:05]} 56. Rh2 {[%clk 0:00:03]}  Ra2+ {[%clk 0:00:05]} 57. Rxa2 {[%clk 0:00:03]}  bxa2 {[%clk 0:00:06]} 58. Kb2 {[%clk 0:00:03]}  Kd3 {[%clk 0:00:07]} 59. Ka1 {[%clk 0:00:03]}  c4 {[%clk 0:00:07]} 60. Kb2 {[%clk 0:00:04]}  Ke2 {[%clk 0:00:08]} 61. Ka1 {[%clk 0:00:04]}  d3 {[%clk 0:00:09]} 62. Kb2 {[%clk 0:00:05]}  e3 {[%clk 0:00:10]} 63. Ka1 {[%clk 0:00:05]}  d2 {[%clk 0:00:11]} 64. Kb2 {[%clk 0:00:06]}  a1=Q+ {[%clk 0:00:11]} 65. Kxa1 {[%clk 0:00:06]}  c3 {[%clk 0:00:11]} 66. Ka2 {[%clk 0:00:06]}  Kd3 {[%clk 0:00:12]} 67. Ka3 {[%clk 0:00:06]}  c2 {[%clk 0:00:12]} 68. Kb4 {[%clk 0:00:06]}  e2 {[%clk 0:00:13]} 0-1


[Site "https://www.chess.com"]

[Event "Titled Tuesday Blitz May 9 Late 2023"]
[White "Aydincelebi, Kagan"]
[Black "Kavutskiy, Konstantin"]
[WhiteFideId "6361102"]
[BlackFideId "2026384"]
[WhiteElo "2180"]
[BlackElo "2323"]
[Result "1-0"]
[Round "02"]
[TimeControl "180+2"]
[Date "2023.05.09"]
[WhiteClock "0:01:43"]
[BlackClock "0:00:09"]

1. e4 {[%clk 0:03:00]}  c5 {[%clk 0:02:59]} 2. Nf3 {[%clk 0:02:59]}  Nc6 {[%clk 0:02:59]} 3. Bb5 {[%clk 0:02:58]}  g6 {[%clk 0:02:59]} 4. O-O {[%clk 0:02:58]}  Bg7 {[%clk 0:02:58]} 5. c3 {[%clk 0:02:59]}  Nf6 {[%clk 0:02:58]} 6. e5 {[%clk 0:02:59]}  Nd5 {[%clk 0:02:58]} 7. d4 {[%clk 0:03:00]}  cxd4 {[%clk 0:02:57]} 8. cxd4 {[%clk 0:03:01]}  O-O {[%clk 0:02:57]} 9. Nc3 {[%clk 0:02:59]}  Nxc3 {[%clk 0:02:57]} 10. bxc3 {[%clk 0:03:00]}  d6 {[%clk 0:02:58]} 11. exd6 {[%clk 0:02:59]}  Qxd6 {[%clk 0:02:58]} 12. h3 {[%clk 0:02:59]}  b6 {[%clk 0:02:54]} 13. Re1 {[%clk 0:02:58]}  Bb7 {[%clk 0:02:51]} 14. a4 {[%clk 0:02:59]}  Rac8 {[%clk 0:02:40]} 15. Ba3 {[%clk 0:02:57]}  Qd5 {[%clk 0:02:39]} 16. Qe2 {[%clk 0:02:48]}  Rfd8 {[%clk 0:02:12]} 17. Bc4 {[%clk 0:02:35]}  Qh5 {[%clk 0:01:55]} 18. Bxf7+ {[%clk 0:02:15]}  Kxf7 {[%clk 0:01:52]} 19. Qe6+ {[%clk 0:02:15]}  Kf8 {[%clk 0:01:45]} 20. Bxe7+ {[%clk 0:02:15]}  Nxe7 {[%clk 0:01:44]} 21. Qxe7+ {[%clk 0:02:16]}  Kg8 {[%clk 0:01:44]} 22. Qxb7 {[%clk 0:02:17]}  Rxc3 {[%clk 0:01:39]} 23. Re7 {[%clk 0:02:16]}  Bf6 {[%clk 0:01:31]} 24. Re6 {[%clk 0:02:05]}  Rxf3 {[%clk 0:01:25]} 25. Qxf3 {[%clk 0:02:00]}  Qxf3 {[%clk 0:01:25]} 26. gxf3 {[%clk 0:02:01]}  Bxd4 {[%clk 0:01:25]} 27. Rae1 {[%clk 0:01:59]}  Bc5 {[%clk 0:01:21]} 28. Re8+ {[%clk 0:01:56]}  Rxe8 {[%clk 0:01:21]} 29. Rxe8+ {[%clk 0:01:56]}  Kf7 {[%clk 0:01:22]} 30. Ra8 {[%clk 0:01:57]}  a5 {[%clk 0:01:21]} 31. Ra7+ {[%clk 0:01:58]}  Kg8 {[%clk 0:01:18]} 32. Kg2 {[%clk 0:01:56]}  h6 {[%clk 0:01:15]} 33. f4 {[%clk 0:01:56]}  Kf8 {[%clk 0:01:14]} 34. Kg3 {[%clk 0:01:55]}  Kg8 {[%clk 0:01:15]} 35. f3 {[%clk 0:01:55]}  Kf8 {[%clk 0:01:06]} 36. Rb7 {[%clk 0:01:52]}  h5 {[%clk 0:01:01]} 37. Kg2 {[%clk 0:01:43]}  Kg8 {[%clk 0:00:53]} 38. Kf1 {[%clk 0:01:44]}  Kf8 {[%clk 0:00:09]} 39. Ke2 {[%clk 0:01:43]} 1-0


[Site "https://www.chess.com"]

[Event "Titled Tuesday Blitz May 9 Late 2023"]
[White "Sieciechowicz, Marcin"]
[Black "angelgab3"]
[WhiteFideId "1130170"]
[WhiteElo "2302"]
[BlackElo "2525"]
[Result "1-0"]
[Round "02"]
[TimeControl "180+2"]
[Date "2023.05.09"]
[WhiteClock "0:01:13"]
[BlackClock "0:01:23"]

1. d4 {[%clk 0:03:00]}  Nf6 {[%clk 0:02:59]} 2. Bf4 {[%clk 0:03:01]}  g6 {[%clk 0:02:59]} 3. e3 {[%clk 0:03:01]}  Bg7 {[%clk 0:02:59]} 4. Nf3 {[%clk 0:03:01]}  O-O {[%clk 0:02:59]} 5. h3 {[%clk 0:03:02]}  c5 {[%clk 0:03:00]} 6. c3 {[%clk 0:03:02]}  d6 {[%clk 0:03:00]} 7. Nbd2 {[%clk 0:03:01]}  b6 {[%clk 0:03:01]} 8. Be2 {[%clk 0:03:00]}  Bb7 {[%clk 0:03:02]} 9. O-O {[%clk 0:03:00]}  Nbd7 {[%clk 0:03:02]} 10. a4 {[%clk 0:03:01]}  a6 {[%clk 0:03:03]} 11. Bh2 {[%clk 0:03:01]}  Ra7 {[%clk 0:03:03]} 12. Qb3 {[%clk 0:03:01]}  Qa8 {[%clk 0:03:03]} 13. Rfd1 {[%clk 0:02:56]}  Ne4 {[%clk 0:03:03]} 14. Nxe4 {[%clk 0:02:54]}  Bxe4 {[%clk 0:03:04]} 15. Ne1 {[%clk 0:02:54]}  Bd5 {[%clk 0:03:02]} 16. Bc4 {[%clk 0:02:52]}  Bxc4 {[%clk 0:03:02]} 17. Qxc4 {[%clk 0:02:53]}  Rb8 {[%clk 0:03:03]} 18. Qe2 {[%clk 0:02:42]}  b5 {[%clk 0:02:56]} 19. a5 {[%clk 0:02:41]}  Rc7 {[%clk 0:02:53]} 20. Nf3 {[%clk 0:02:35]}  b4 {[%clk 0:02:48]} 21. c4 {[%clk 0:02:29]}  cxd4 {[%clk 0:02:47]} 22. exd4 {[%clk 0:02:28]}  Nf6 {[%clk 0:02:40]} 23. d5 {[%clk 0:02:15]}  b3 {[%clk 0:02:32]} 24. Nd4 {[%clk 0:02:14]}  Rbc8 {[%clk 0:02:28]} 25. Nc6 {[%clk 0:02:08]}  e6 {[%clk 0:02:28]} 26. Bxd6 {[%clk 0:02:05]}  Rb7 {[%clk 0:02:21]} 27. Ne7+ {[%clk 0:02:02]}  Rxe7 {[%clk 0:02:21]} 28. Bxe7 {[%clk 0:02:03]}  exd5 {[%clk 0:02:22]} 29. Bxf6 {[%clk 0:01:56]}  Bxf6 {[%clk 0:02:23]} 30. cxd5 {[%clk 0:01:56]}  Rc2 {[%clk 0:02:24]} 31. Qf3 {[%clk 0:01:54]}  Qd8 {[%clk 0:02:11]} 32. Qxb3 {[%clk 0:01:48]}  Rxb2 {[%clk 0:02:12]} 33. Qc4 {[%clk 0:01:44]}  Qd6 {[%clk 0:02:06]} 34. Ra2 {[%clk 0:01:36]}  Rb4 {[%clk 0:02:00]} 35. Qc6 {[%clk 0:01:33]}  Qf4 {[%clk 0:02:00]} 36. d6 {[%clk 0:01:26]}  Rd4 {[%clk 0:02:00]} 37. Rxd4 {[%clk 0:01:16]}  Qxd4 {[%clk 0:02:01]} 38. Qxa6 {[%clk 0:01:15]}  Qd5 {[%clk 0:01:23]} 39. Qe2 {[%clk 0:01:13]} 1-0


[Site "https://www.chess.com"]